bitfinex/quotes_BTCUSD_20251201
["timestamp","ask_amount","ask_price","bid_price","bid_amount"]
[1764630647043,0.02490793,86654.0,86653.0,0.08249]
[1764630647280,0.01153841,86667.0,86653.0,0.08249]
[1764630647281,0.031115,86671.0,86668.0,0.01153828]
[1764630647494,0.031115,86671.0,86664.0,0.02299768]
[1764630647495,0.01153775,86672.0,86666.0,0.02554]
[1764630647728,0.01153788,86671.0,86670.0,0.01145887]
[1764630647963,0.53833128,86690.0,86676.0,0.01153721]
[1764630648149,0.01153668,86680.0,86678.0,0.03186]
[1764630648567,0.01153668,86680.0,86678.0,0.08149]
[1764630648775,0.24227304,86680.0,86678.0,0.08149]
[1764630648972,0.00208751,86679.0,86678.0,0.08149]
[1764630649395,0.00108751,86679.0,86678.0,0.08149]
[1764630649607,0.00208751,86679.0,86678.0,0.08549]
[1764630650508,0.00208751,86679.0,86678.0,0.08649]
[1764630653611,0.00208751,86679.0,86678.0,0.097693]
[1764630653816,0.00208751,86679.0,86678.0,0.08649]
[1764630654451,0.00208751,86679.0,86678.0,0.31722905]
[1764630654622,0.00208751,86679.0,86678.0,0.08649]
[1764630654823,0.01153588,86686.0,86679.0,0.2422732]
[1764630655001,0.01192223,86686.0,86685.0,0.03186]
[1764630655407,0.01192223,86686.0,86685.0,0.08149]
[1764630655603,0.24264251,86686.0,86685.0,0.08149]
[1764630656142,0.00038635,86686.0,86685.0,0.08149]
[1764630656301,0.00038635,86686.0,86685.0,0.08449]
[1764630656503,0.00038635,86686.0,86685.0,0.12074733]
[1764630656504,0.23110411,86686.0,86685.0,0.12074733]
[1764630656941,0.00038635,86686.0,86685.0,0.12074733]
[1764630657288,0.00038635,86686.0,86685.0,0.35146775]
[1764630657705,0.00038635,86686.0,86685.0,0.36292662]
[1764630658126,0.01153469,86695.0,86694.0,0.01145887]
[1764630658127,0.323,86695.0,86694.0,0.01145887]
[1764630658329,0.00011141,86695.0,86694.0,0.09538261]
[1764630658529,0.32311141,86695.0,86694.0,0.14501261]
[1764630659426,0.00011141,86695.0,86694.0,0.14701261]
[1764630659630,0.32311141,86695.0,86694.0,0.14701261]
[1764630659833,0.00011141,86695.0,86694.0,0.14701261]
[1764630660356,0.00011141,86695.0,86694.0,0.36625021]
[1764630660764,0.00061835,86695.0,86694.0,0.37770908]
[1764630661185,0.00061835,86695.0,86694.0,0.36625021]
[1764630661488,0.00061835,86695.0,86694.0,0.37770908]
[1764630661714,0.323,86705.0,86694.0,0.37770908]
[1764630661715,0.24216953,86717.0,86708.0,0.2306566]
[1764630661869,0.01153176,86717.0,86716.0,0.03186]
[1764630662078,0.01153176,86717.0,86716.0,0.08149]
[1764630662404,0.56516704,86717.0,86716.0,0.08149]
[1764630662604,0.24216704,86717.0,86716.0,0.08149]
[1764630662923,0.24316704,86717.0,86716.0,0.08149]
[1764630663337,0.24216704,86717.0,86716.0,0.08149]
[1764630663538,0.24216704,86717.0,86716.0,0.08249]
[1764630664060,0.24216704,86717.0,86716.0,0.08649]
[1764630664609,0.24216704,86717.0,86716.0,0.08549]
[1764630665211,0.24216704,86717.0,86716.0,0.08149]
[1764630665406,0.24216704,86717.0,86716.0,0.08449]
[1764630666494,0.24216704,86717.0,86716.0,0.003]
[1764630666858,0.24216704,86717.0,86716.0,0.03935]
[1764630667068,0.24211025,86717.0,86716.0,0.08938]
[1764630667455,0.24280706,86717.0,86716.0,0.08938]
[1764630668278,0.24280706,86717.0,86716.0,0.03935]
[1764630669428,0.24280706,86717.0,86716.0,0.003]
[1764630669577,0.31297252,86717.0,86716.0,0.003]
[1764630669989,0.26755849,86717.0,86716.0,0.003]
[1764630670189,0.55365124,86711.0,86710.0,0.02554]
[1764630670400,0.57189124,86711.0,86710.0,0.02554]
[1764630670557,0.57189124,86711.0,86710.0,0.11192]
[1764630670999,0.55365124,86711.0,86710.0,0.11192]
[1764630671206,0.34124,86712.0,86710.0,0.11192]
[1764630671458,0.34124,86712.0,86711.0,0.05003]
[1764630671606,0.323,86712.0,86711.0,0.08638]
[1764630674027,0.323,86712.0,86711.0,0.08938]
[1764630675999,0.2421806,86713.0,86711.0,0.08938]
[1764630676210,0.26700086,86713.0,86712.0,0.08638]
[1764630677884,0.26700086,86713.0,86712.0,0.08938]
[1764630678087,0.03635255,86713.0,86712.0,0.08938]
[1764630678323,0.01153189,86716.0,86712.0,0.08938]
[1764630678324,0.01153203,86715.0,86712.0,0.08938]
[1764630678513,0.02482026,86715.0,86713.0,0.05003]
[1764630678726,0.23063259,86719.0,86715.0,0.03635]
[1764630678934,0.25545285,86719.0,86718.0,0.06336]
[1764630679332,0.25545285,86719.0,86718.0,0.11339]
[1764630680310,0.25545285,86719.0,86718.0,0.11539]
[1764630683009,0.25545285,86719.0,86718.0,0.02901]
[1764630683441,0.25621299,86719.0,86718.0,0.02901]
[1764630684215,0.28732799,86719.0,86718.0,0.02901]
[1764630684813,0.28732799,86719.0,86718.0,0.002]
[1764630685058,0.25621299,86719.0,86718.0,0.002]
[1764630686131,0.57921299,86719.0,86718.0,0.002]
[1764630686335,0.68677112,86719.0,86718.0,0.002]
[1764630686540,0.62462702,86719.0,86718.0,0.002]
[1764630686935,0.59079702,86719.0,86718.0,0.002]
[1764630689575,0.57921299,86719.0,86718.0,0.002]
[1764630690900,0.57921299,86719.0,86718.0,0.0382]
[1764630691154,0.57921299,86719.0,86718.0,0.09294]
[1764630691363,0.65976042,86719.0,86718.0,0.09294]
[1764630691535,0.59745299,86719.0,86718.0,0.09294]
[1764630692033,0.65976659,86719.0,86718.0,0.09294]
[1764630692302,0.65976673,86719.0,86718.0,0.09294]
[1764630692878,0.59745299,86719.0,86718.0,0.09294]
[1764630693093,0.57921299,86719.0,86718.0,0.09294]
[1764630695294,0.62075886,86719.0,86718.0,0.09294]
[1764630696017,0.57921299,86719.0,86718.0,0.0382]
[1764630696225,0.62075897,86719.0,86718.0,0.09314]
[1764630697038,0.57921299,86719.0,86718.0,0.09314]
[1764630697241,0.62075921,86719.0,86718.0,0.09314]
[1764630698662,0.73598517,86719.0,86718.0,0.0382]
[1764630698883,0.57921299,86719.0,86718.0,0.002]
[1764630699085,0.57921299,86719.0,86718.0,0.04036]
[1764630699434,0.57921299,86719.0,86718.0,0.0953]
[1764630701247,0.57921299,86719.0,86718.0,0.04036]
[1764630701743,0.57921299,86719.0,86718.0,0.0953]
[1764630703755,0.57921299,86719.0,86718.0,0.002]
[1764630703932,0.62250299,86719.0,86718.0,0.002]
[1764630704578,0.58576299,86719.0,86718.0,0.002]
[1764630705259,0.62731007,86719.0,86718.0,0.002]
[1764630706561,0.62076007,86719.0,86718.0,0.002]
[1764630706780,0.57921299,86719.0,86718.0,0.04036]
[1764630706980,0.57921299,86719.0,86718.0,0.0953]
[1764630707793,0.62076007,86719.0,86718.0,0.0953]
[1764630707953,0.57921299,86719.0,86718.0,0.04036]
[1764630708356,0.57921299,86719.0,86718.0,0.002]
[1764630710192,0.62076007,86719.0,86718.0,0.002]
[1764630711597,0.57921299,86719.0,86718.0,0.002]
[1764630714106,0.59745299,86719.0,86718.0,0.002]
[1764630714515,0.62076007,86719.0,86718.0,0.002]
[1764630714723,0.63900007,86719.0,86718.0,0.002]
[1764630715341,0.23064326,86714.0,86713.0,0.06755317]
[1764630715543,0.28255985,86714.0,86713.0,0.06755317]
[1764630715859,0.30798192,86714.0,86713.0,0.06755317]
[1764630717383,0.30798192,86714.0,86713.0,0.06955317]
[1764630719296,0.30798192,86714.0,86713.0,0.01461317]
[1764630719694,0.83483864,86714.0,86713.0,0.002]
[1764630719921,0.83483864,86714.0,86694.0,0.02554]
[1764630719922,0.23069381,86695.0,86694.0,0.02554]
[1764630720120,0.2826104,86695.0,86694.0,0.02554]
[1764630720323,0.30743066,86695.0,86694.0,0.02554]
[1764630720521,0.23070977,86689.0,86688.0,0.08364]
[1764630720920,0.23070977,86689.0,86688.0,0.122]
[1764630722199,0.23070977,86689.0,86688.0,0.124]
[1764630729729,0.26819602,86689.0,86688.0,0.124]
[1764630730973,0.23070977,86689.0,86688.0,0.124]
[1764630737583,0.01153482,86694.0,86688.0,0.124]
[1764630737879,0.01153482,86694.0,86689.0,0.05352]
[1764630737880,0.24223977,86691.0,86689.0,0.05352]
[1764630738221,0.24223977,86691.0,86690.0,0.0336]
[1764630738481,0.24223408,86693.0,86690.0,0.0336]
[1764630738656,0.24223408,86693.0,86692.0,0.0336]
[1764630739057,0.24223408,86693.0,86692.0,0.08712]
[1764630739625,0.01153495,86693.0,86692.0,0.08712]
[1764630740008,0.23069585,86695.0,86692.0,0.08712]
[1764630740168,0.23066708,86706.0,86694.0,0.04513482]
[1764630740169,0.24221506,86700.0,86694.0,0.04513482]
[1764630740374,0.01153415,86699.0,86694.0,0.01153482]
[1764630740590,0.01153415,86699.0,86698.0,0.06079]
[1764630741017,0.01153415,86699.0,86698.0,0.11431]
[1764630741934,0.24221939,86699.0,86698.0,0.11431]
[1764630742519,0.24221939,86699.0,86698.0,0.11531]
[1764630747513,0.33797471,86699.0,86698.0,0.02819]
[1764630747711,0.67889873,86699.0,86698.0,0.001]
[1764630747913,0.69048276,86699.0,86698.0,0.001]
[1764630748475,0.2307284,86682.0,86681.0,0.0287]
[1764630748673,0.2307284,86682.0,86681.0,0.02881141]
[1764630748867,0.2307284,86682.0,86681.0,0.11593141]
[1764630748868,0.33234016,86682.0,86681.0,0.11593141]
[1764630749493,0.06724685,86682.0,86681.0,0.11593141]
[1764630749696,0.2307284,86682.0,86681.0,0.11593141]
[1764630751025,0.2307284,86682.0,86681.0,0.11793141]
[1764630751178,0.24226169,86684.0,86681.0,0.11793141]
[1764630751373,0.24226169,86684.0,86683.0,0.0344]
[1764630751929,0.24226169,86684.0,86683.0,0.08669]
[1764630752495,0.24226169,86684.0,86683.0,0.08769]
[1764630753557,0.24226169,86684.0,86683.0,0.08769]
[1764630753854,0.01153615,86684.0,86683.0,0.08769]
[1764630754401,0.01153588,86686.0,86683.0,0.08769]
[1764630754620,0.01153588,86686.0,86685.0,0.0344]
[1764630754986,0.01153588,86686.0,86685.0,0.08669]
[1764630756339,0.01153615,86684.0,86681.0,0.02881141]
[1764630756490,0.13612899,86684.0,86681.0,0.02881141]
[1764630756690,0.23072574,86683.0,86681.0,0.08481141]
[1764630757210,0.23072574,86683.0,86682.0,0.09128]
[1764630759369,0.23072574,86683.0,86682.0,0.09328]
[1764630762100,0.29417832,86684.0,86682.0,0.09328]
[1764630762398,0.29417832,86684.0,86683.0,0.09128]
[1764630764148,0.24226173,86684.0,86683.0,0.09128]
[1764630764556,0.24226173,86684.0,86683.0,0.09228]
[1764630766231,0.29417832,86684.0,86683.0,0.09228]
[1764630766681,0.06345274,86684.0,86683.0,0.09228]
[1764630766802,0.01153615,86684.0,86683.0,0.09228]
[1764630767647,0.23072042,86685.0,86683.0,0.09228]
[1764630767836,0.24225378,86686.0,86684.0,0.09128]
[1764630768023,0.02977495,86693.0,86684.0,0.09128]
[1764630768024,0.23071524,86687.0,86685.0,0.03528]
[1764630768229,0.01153508,86692.0,86685.0,0.056]
[1764630768434,0.03643746,86692.0,86691.0,0.06397]
[1764630768629,0.23072308,86684.0,86683.0,0.001]
[1764630768844,0.28263967,86684.0,86683.0,0.001]
[1764630769047,0.30754205,86684.0,86683.0,0.09228]
[1764630769760,0.30754205,86684.0,86683.0,0.09128]
[1764630770952,0.30754205,86684.0,86683.0,0.09228]
[1764630771317,0.30754205,86684.0,86683.0,0.03628]
[1764630772838,0.30754205,86684.0,86683.0,0.001]
[1764630772956,0.31912608,86684.0,86683.0,0.001]
[1764630773356,0.30754205,86684.0,86683.0,0.001]
[1764630777499,0.30754205,86684.0,86683.0,0.09228]
[1764630777711,0.25562546,86684.0,86683.0,0.09228]
[1764630777907,0.24896308,86684.0,86683.0,0.09228]
[1764630778107,0.27386546,86684.0,86683.0,0.09228]
[1764630779503,0.27386546,86684.0,86683.0,0.001]
[1764630780309,0.2307284,86682.0,86681.0,0.02881141]
[1764630780520,0.2307284,86682.0,86681.0,0.08481141]
[1764630780720,0.2307284,86682.0,86681.0,0.12009141]
[1764630782559,0.2307284,86682.0,86681.0,0.12109141]
[1764630785589,0.02492933,86683.0,86681.0,0.12109141]
[1764630785823,0.02492933,86683.0,86682.0,0.05313]
[1764630786007,0.02492933,86683.0,86682.0,0.08724]
[1764630787037,0.04985917,86683.0,86682.0,0.08724]
[1764630787412,0.04985917,86683.0,86682.0,0.08824]
[1764630790659,0.02492933,86683.0,86682.0,0.08824]
[1764630797133,0.04985917,86683.0,86682.0,0.08824]
[1764630806258,0.04985917,86683.0,86682.0,0.03511]
[1764630807079,0.04985917,86683.0,86682.0,0.001]
[1764630807080,0.55254848,86683.0,86682.0,0.001]
[1764630807237,0.58658021,86683.0,86682.0,0.001]
[1764630807452,0.23079763,86656.0,86650.0,0.05353]
[1764630807667,0.23081095,86651.0,86650.0,0.05353]
[1764630808066,0.23081095,86651.0,86650.0,0.08764]
[1764630809182,0.23081095,86651.0,86650.0,0.08964]
[1764630809585,0.23081095,86651.0,86650.0,0.03651]
[1764630809797,0.23081095,86651.0,86650.0,0.08773]
[1764630810571,0.30236638,86651.0,86650.0,0.08773]
[1764630813241,0.30236638,86651.0,86650.0,0.0034]
[1764630813619,0.30236638,86651.0,86650.0,0.0042243]
[1764630814185,0.23081095,86651.0,86650.0,0.0042243]
[1764630818158,0.24239498,86651.0,86650.0,0.0042243]
[1764630818324,0.23081095,86651.0,86650.0,0.0042243]
[1764630819760,0.05191659,86652.0,86650.0,0.0042243]
[1764630819984,0.05191659,86652.0,86650.0,0.0034]
[1764630819985,0.23081095,86651.0,86650.0,0.0034]
[1764630820760,0.23081095,86651.0,86650.0,0.0024]
[1764630820761,0.24964095,86651.0,86650.0,0.0024]
[1764630820949,0.24964095,86651.0,86650.0,0.0034]
[1764630821421,0.24964095,86651.0,86650.0,0.0004]
[1764630821901,0.57264095,86651.0,86650.0,0.0004]
[1764630822348,0.57264095,86651.0,86650.0,0.0014]
[1764630824047,0.60643095,86651.0,86650.0,0.0014]
[1764630824579,0.72165691,86651.0,86650.0,0.0014]
[1764630824996,0.60643095,86651.0,86650.0,0.0004]
[1764630825483,0.60743095,86651.0,86650.0,0.0004]
[1764630825665,0.57364095,86651.0,86650.0,0.0004]
[1764630825872,0.57364095,86651.0,86650.0,0.0012243]
[1764630829454,0.55481095,86651.0,86650.0,0.0012243]
[1764630829994,0.57305095,86651.0,86650.0,0.0877143]
[1764630830386,0.57305095,86651.0,86650.0,0.0348343]
[1764630831222,0.59790543,86651.0,86650.0,0.0012243]
[1764630831605,0.57966543,86651.0,86650.0,0.0012243]
[1764630831828,0.59790543,86651.0,86650.0,0.0012243]
[1764630834539,0.70503543,86651.0,86650.0,0.0012243]
[1764630834739,0.83184542,86651.0,86650.0,0.0012243]
[1764630835328,0.82026139,86651.0,86650.0,0.0012243]
[1764630835556,0.83184542,86651.0,86650.0,0.0012243]
[1764630837728,0.56542162,86641.0,86640.0,0.0002]
[1764630837947,0.73836948,86641.0,86640.0,0.0002]
[1764630838386,0.73836948,86641.0,86640.0,0.00051712]
[1764630839016,0.73836948,86641.0,86640.0,0.00151712]
[1764630839257,0.73395773,86641.0,86640.0,0.00151712]
[1764630839459,0.6968161,86641.0,86640.0,0.00151712]
[1764630840276,0.52941341,86641.0,86640.0,0.00051712]
[1764630840495,0.56056151,86641.0,86640.0,0.00051712]
[1764630840715,0.54897748,86641.0,86640.0,0.00051712]
[1764630840918,0.62382785,86641.0,86640.0,0.00051712]
[1764630841605,0.65496997,86641.0,86640.0,0.00051712]
[1764630842055,0.65596997,86641.0,86640.0,0.00051712]
[1764630842251,0.56155553,86641.0,86640.0,0.00051712]
[1764630843528,0.53041341,86641.0,86640.0,0.00051712]
[1764630845286,0.4887901,86641.0,86640.0,0.00051712]
[1764630845484,0.43052938,86641.0,86640.0,0.00051712]
[1764630846940,0.43057433,86641.0,86640.0,0.00051712]
[1764630847143,0.56349102,86641.0,86640.0,0.00051712]
[1764630847355,0.63007505,86641.0,86640.0,0.00051712]
[1764630847955,0.57507505,86641.0,86640.0,0.00051712]
[1764630848340,0.61849102,86641.0,86640.0,0.00051712]
[1764630848548,0.63007505,86641.0,86640.0,0.00051712]
[1764630849596,0.47819836,86641.0,86640.0,0.00051712]
[1764630849810,0.53319836,86641.0,86640.0,0.00051712]
[1764630850328,0.53319836,86641.0,86611.0,0.02584]
[1764630850329,0.23088556,86623.0,86611.0,0.02584]
[1764630850613,0.23088556,86623.0,86610.0,0.0002]
[1764630850614,0.64464902,86623.0,86610.0,0.0002]
[1764630850756,0.87712047,86623.0,86610.0,0.0002]
[1764630850956,0.84071498,86623.0,86610.0,0.0002]
[1764630851203,0.90291547,86623.0,86610.0,0.0002]
[1764630851382,0.56547492,86621.0,86620.0,1e-08]
[1764630851579,0.62641435,86621.0,86620.0,1e-08]
[1764630851774,0.79664031,86621.0,86620.0,1e-08]
[1764630852517,0.8591633,86621.0,86620.0,1e-08]
[1764630852921,2.8591633,86621.0,86620.0,1e-08]
[1764630853531,2.94713339,86621.0,86620.0,1e-08]
[1764630853733,2.83190743,86621.0,86620.0,1e-08]
[1764630853883,2.83390743,86621.0,86620.0,1e-08]
[1764630854233,2.83190743,86621.0,86620.0,1e-08]
[1764630854531,2.83590743,86621.0,86620.0,0.00100001]
[1764630854710,2.93942913,86621.0,86620.0,0.00100001]
[1764630855311,2.9278451,86621.0,86620.0,0.00100001]
[1764630855500,2.93942913,86621.0,86620.0,1e-08]
[1764630857082,0.55391755,86611.0,86610.0,0.0002]
[1764630857339,0.707244,86611.0,86610.0,0.0002843]
[1764630857534,0.81108989,86611.0,86610.0,0.00123605]
[1764630857914,0.84582081,86611.0,86610.0,0.00123605]
[1764630858315,0.82092138,86611.0,86610.0,0.00123605]
[1764630858518,0.84673081,86611.0,86610.0,0.00123605]
[1764630858689,0.79788492,86611.0,86610.0,0.00123605]
[1764630862072,0.64563101,86611.0,86610.0,0.00123605]
[1764630862690,0.70063101,86611.0,86610.0,0.00123605]
[1764630864326,0.74198448,86611.0,86610.0,0.00123605]
[1764630864528,0.67540045,86611.0,86610.0,0.00123605]
[1764630865604,0.64563101,86611.0,86610.0,0.00123605]
[1764630865808,0.63404698,86611.0,86610.0,0.00123605]
[1764630866008,0.64563101,86611.0,86610.0,0.00123605]
[1764630866221,0.60959101,86611.0,86610.0,0.00123605]
[1764630866422,0.59800698,86611.0,86610.0,0.00123605]
[1764630866964,0.25672698,86611.0,86610.0,0.09436605]
[1764630867814,0.25572698,86611.0,86610.0,0.09436605]
[1764630868167,0.25572698,86611.0,86610.0,0.09536605]
[1764630870491,0.25572698,86611.0,86610.0,0.00223605]
[1764630871603,0.25572698,86611.0,86610.0,0.09536605]
[1764630872113,0.02480943,86611.0,86610.0,0.09536605]
[1764630872319,0.25572698,86611.0,86610.0,0.09536605]
[1764630872701,0.25572698,86611.0,86610.0,0.10748666]
[1764630873384,0.25572698,86611.0,86610.0,0.09536605]
[1764630878579,0.25572698,86611.0,86610.0,0.00223605]
[1764630878580,0.61384698,86611.0,86610.0,0.00223605]
[1764630878696,0.57872698,86611.0,86610.0,0.00223605]
[1764630879100,0.61345271,86611.0,86610.0,0.00223605]
[1764630879300,0.61345271,86611.0,86610.0,0.00123605]
[1764630879604,0.61445271,86611.0,86610.0,0.00123605]
[1764630881407,0.72967867,86611.0,86610.0,0.00123605]
[1764630882082,0.79170887,86611.0,86610.0,0.00123605]
[1764630882267,0.67648291,86611.0,86610.0,0.00123605]
[1764630884376,0.61445271,86611.0,86610.0,0.00123605]
[1764630885336,0.57972698,86611.0,86610.0,0.00123605]
[1764630885539,0.57972698,86611.0,86610.0,0.09019605]
[1764630885970,0.59800698,86611.0,86610.0,0.09019605]
[1764630887420,0.57972698,86611.0,86610.0,0.09019605]
[1764630887623,0.59800698,86611.0,86610.0,0.09019605]
[1764630889106,0.59800698,86611.0,86610.0,0.03779605]
[1764630889563,0.59800698,86611.0,86610.0,0.00123605]
[1764630890411,0.70925689,86611.0,86610.0,0.00123605]
[1764630890602,0.60959101,86611.0,86610.0,0.00123605]
[1764630891945,0.63312698,86611.0,86610.0,0.00123605]
[1764630892155,0.59800698,86611.0,86610.0,0.00123605]
[1764630899638,0.59800698,86611.0,86610.0,0.03779605]
[1764630899639,0.57972698,86611.0,86610.0,0.03779605]
[1764630899817,0.59800698,86611.0,86610.0,0.09019605]
[1764630900478,0.63960677,86611.0,86610.0,0.09019605]
[1764630900681,0.59800698,86611.0,86610.0,0.09019605]
[1764630901608,0.57972698,86611.0,86610.0,0.09019605]
[1764630901810,0.59800698,86611.0,86610.0,0.09019605]
[1764630902851,0.59800698,86611.0,86610.0,0.00123605]
[1764630905023,0.57972698,86611.0,86610.0,0.09019605]
[1764630905231,0.02580943,86611.0,86610.0,0.10179166]
[1764630905378,0.001,86611.0,86610.0,0.09019605]
[1764630905977,0.01154547,86614.0,86610.0,0.09019605]
[1764630906182,0.01154561,86613.0,86611.0,0.05045]
[1764630906417,0.24245665,86614.0,86613.0,0.06034655]
[1764630906418,0.01154547,86614.0,86613.0,0.06034655]
[1764630906624,0.02480943,86615.0,86613.0,0.11079655]
[1764630906796,0.24245143,86616.0,86614.0,0.03432]
[1764630907138,0.24245143,86616.0,86615.0,0.03432]
[1764630907332,0.24245143,86616.0,86615.0,0.08477]
[1764630915152,0.02480943,86617.0,86615.0,0.09587491]
[1764630915320,0.01154441,86622.0,86616.0,0.08477]
[1764630915498,0.01154454,86621.0,86617.0,0.01145887]
[1764630915697,0.01154441,86622.0,86617.0,0.07345394]
[1764630915915,0.01154441,86622.0,86621.0,0.05949]
[1764630916353,0.01154441,86622.0,86621.0,0.10994]
[1764630916769,0.24243263,86622.0,86621.0,0.10994]
[1764630917564,0.24242969,86624.0,86621.0,0.10994]
[1764630917895,0.24242969,86624.0,86623.0,0.03432]
[1764630918121,0.01154387,86626.0,86623.0,0.11785365]
[1764630918278,0.37491659,86639.0,86623.0,0.11785365]
[1764630918279,0.02489244,86629.0,86627.0,0.01154374]
[1764630918479,0.01154307,86632.0,86628.0,0.03432]
[1764630918686,0.01154307,86632.0,86631.0,0.10894]
[1764630919050,0.24239916,86634.0,86632.0,0.08477]
[1764630919377,0.24240424,86633.0,86632.0,0.05045]
[1764630920069,0.24239916,86634.0,86632.0,0.08477]
[1764630920287,0.24239916,86634.0,86633.0,0.03332]
[1764630920524,0.24239916,86634.0,86633.0,0.08377]
[1764630921450,0.24239356,86636.0,86633.0,0.08477]
[1764630921655,0.23085358,86635.0,86634.0,0.05045]
[1764630922101,0.23085358,86635.0,86634.0,0.08477]
[1764630924023,0.24239356,86636.0,86634.0,0.08477]
[1764630924223,0.23083492,86642.0,86635.0,0.09631267]
[1764630924424,0.02978161,86643.0,86641.0,0.05949]
[1764630924633,0.23083492,86642.0,86641.0,0.02517]
[1764630924840,0.23083492,86642.0,86641.0,0.10994]
[1764630925590,0.23083492,86642.0,86641.0,0.1100243]
[1764630926617,0.23183492,86642.0,86641.0,0.1100243]
[1764630934371,0.001,86642.0,86641.0,0.1100243]
[1764630935972,0.02486079,86643.0,86641.0,0.1100243]
[1764630935973,0.23083401,86643.0,86641.0,0.1100243]
[1764630936173,0.2556948,86643.0,86642.0,0.08622]
[1764630936375,0.02486079,86643.0,86642.0,0.08522]
[1764630936691,0.26723349,86644.0,86642.0,0.08522]
[1764630936889,0.26723349,86644.0,86643.0,0.08622]
[1764630937489,0.26723349,86644.0,86643.0,0.08522]
[1764630937877,0.26723349,86644.0,86643.0,0.08822]
[1764630938052,0.26823349,86644.0,86643.0,0.08822]
[1764630938254,0.01254148,86644.0,86643.0,0.08822]
[1764630938751,0.001,86644.0,86643.0,0.1387192]
[1764630938950,0.001,86644.0,86643.0,0.12726033]
[1764630939196,0.001,86644.0,86643.0,0.08822]
[1764630946621,0.2318296,86644.0,86643.0,0.08822]
[1764630951397,0.25671987,86644.0,86643.0,0.08822]
[1764630951635,0.2318296,86644.0,86643.0,0.08822]
[1764630951837,0.25671987,86644.0,86643.0,0.08822]
[1764630952156,0.2318296,86644.0,86643.0,0.08822]
[1764630952359,0.25671987,86644.0,86643.0,0.08822]
[1764630952551,0.2318296,86644.0,86643.0,0.08822]
[1764630952810,0.25671987,86644.0,86643.0,0.08822]
[1764630953033,0.2318296,86644.0,86643.0,0.08822]
[1764630953240,0.25671987,86644.0,86643.0,0.08822]
[1764630956173,0.001,86644.0,86643.0,0.08822]
[1764630956373,0.02589027,86644.0,86643.0,0.08822]
[1764630958233,0.001,86644.0,86643.0,0.08822]
[1764630961423,0.02589027,86644.0,86643.0,0.08822]
[1764630961613,0.001,86644.0,86643.0,0.08822]
[1764630961813,0.02589027,86644.0,86643.0,0.08822]
[1764630962013,0.001,86644.0,86643.0,0.08822]
[1764630962214,0.02589027,86644.0,86643.0,0.08822]
[1764630962697,0.001,86644.0,86643.0,0.08822]
[1764630962906,0.02589027,86644.0,86643.0,0.08822]
[1764630963106,0.02589027,86644.0,86643.0,0.09967887]
[1764630963265,0.001,86644.0,86643.0,0.1079752]
[1764630965363,0.001,86644.0,86643.0,0.08822]
[1764630967406,0.13640976,86648.0,86643.0,0.08822]
[1764630967632,0.1479507,86648.0,86647.0,0.0329]
[1764630967987,0.1479507,86648.0,86647.0,0.08514]
[1764630970047,0.1479507,86648.0,86647.0,0.08814]
[1764630970820,0.1479507,86648.0,86647.0,0.09959887]
[1764630971612,0.03232467,86660.0,86652.0,0.01145887]
[1764630971822,0.01153948,86659.0,86655.0,0.02547]
[1764630971998,0.01153948,86659.0,86658.0,0.01145887]
[1764630971999,0.24233112,86659.0,86658.0,0.01145887]
[1764630972299,0.24233112,86659.0,86658.0,0.09659887]
[1764630973068,0.00211953,86660.0,86658.0,0.09659887]
[1764630973273,0.00111953,86660.0,86659.0,0.09659887]
[1764630973712,0.00111953,86660.0,86659.0,0.15958052]
[1764630976426,0.00111953,86660.0,86659.0,0.16158052]
[1764630976626,0.00111953,86660.0,86659.0,0.09859713]
[1764630977229,0.00111953,86660.0,86659.0,0.10344013]
[1764630980781,0.00111953,86660.0,86659.0,0.33422977]
[1764630982690,0.00111953,86660.0,86659.0,0.33222977]
[1764630982895,0.00211953,86660.0,86659.0,0.33722977]
[1764630983510,0.00211953,86660.0,86659.0,0.33822977]
[1764630985071,0.00211953,86660.0,86659.0,0.32677264]
[1764630985275,0.00211953,86660.0,86659.0,0.33822977]
[1764630987062,0.00211953,86660.0,86659.0,0.10744013]
[1764630988721,0.00211953,86660.0,86659.0,0.095983]
[1764630993294,0.00211953,86660.0,86659.0,0.33822977]
[1764630997930,0.00211953,86660.0,86659.0,0.34976818]
[1764631002273,0.08069673,86670.0,86669.0,0.03379]
[1764631002473,0.08069673,86670.0,86669.0,0.01858]
[1764631002795,0.01153801,86670.0,86669.0,0.10239]
[1764631005105,0.01153801,86670.0,86669.0,0.10439]
[1764631007984,0.01185498,86670.0,86669.0,0.10439]
[1764631009692,0.1348567,86670.0,86669.0,0.02058]
[1764631009875,0.19448318,86670.0,86669.0,0.02058]
[1764631010078,0.16661029,86670.0,86669.0,0.02058]
[1764631014603,0.16661029,86670.0,86669.0,0.002]
[1764631017493,0.57642094,86670.0,86669.0,0.002]
[1764631017710,0.55378698,86660.0,86659.0,0.004843]
[1764631017912,0.67307733,86660.0,86659.0,0.004843]
[1764631018117,0.681797,86660.0,86659.0,0.004843]
[1764631018336,0.706807,86660.0,86659.0,0.004843]
[1764631018537,0.86148988,86660.0,86659.0,0.004843]
[1764631018738,0.84990585,86660.0,86659.0,0.004843]
[1764631018940,0.86148988,86660.0,86659.0,0.004843]
[1764631019255,0.86148988,86660.0,86659.0,0.005843]
[1764631019469,0.86148988,86660.0,86659.0,0.004843]
[1764631020660,0.71839103,86660.0,86659.0,0.004843]
[1764631022221,0.7598362,86660.0,86659.0,0.004843]
[1764631023099,0.71839103,86660.0,86659.0,0.004843]
[1764631023505,0.706807,86660.0,86659.0,0.004843]
[1764631023704,0.71839103,86660.0,86659.0,0.004843]
[1764631023904,0.83361699,86660.0,86659.0,0.004843]
[1764631024297,0.87505555,86660.0,86659.0,0.004843]
[1764631024907,0.87705555,86660.0,86659.0,0.004843]
[1764631026090,0.83561699,86660.0,86659.0,0.004843]
[1764631026625,0.72039103,86660.0,86659.0,0.004843]
[1764631027610,0.640277,86660.0,86659.0,0.004843]
[1764631027813,0.658517,86660.0,86659.0,0.004843]
[1764631028603,0.709857,86660.0,86659.0,0.004843]
[1764631031061,0.658517,86660.0,86659.0,0.004843]
[1764631031794,0.623967,86660.0,86659.0,0.004843]
[1764631032543,0.605727,86660.0,86659.0,0.004843]
[1764631032739,0.623967,86660.0,86659.0,0.004843]
[1764631033562,0.622967,86660.0,86659.0,0.004843]
[1764631033759,0.621967,86660.0,86659.0,0.004843]
[1764631033999,0.621967,86660.0,86659.0,0.005843]
[1764631034416,0.04994002,86660.0,86659.0,0.112493]
[1764631034606,0.01153908,86662.0,86659.0,0.112493]